fUST/lending_fUST_20250812
["ID","MTS","AMOUNT","RATE_DAILY","PERIOD"]
[378728735,1754993447854,-460.0,0.00018879,2]
[378728736,1754993447863,-460.0,0.00018879,2]
[378728737,1754993447872,-591.24134132,0.00018879,2]
[378728738,1754993447882,-460.0,0.00018879,2]
[378728739,1754993447891,-460.0,0.00018879,2]
[378728740,1754993447901,-460.0,0.00018879,2]
[378728741,1754993447910,-514.43388959,0.00018879,2]
[378728742,1754993447919,-230.23834961,0.00018879,2]
[378728743,1754993447928,-463.37171853,0.00018879,2]
[378728744,1754993447939,-460.0,0.00018879,2]
[378728745,1754993447952,-468.98016125,0.00018879,2]
[378728746,1754993447963,-460.0,0.00018879,2]
[378728747,1754993447972,-482.25842071,0.00018879,2]
[378728748,1754993447982,-460.0,0.00018879,2]
[378728749,1754993447991,-460.0,0.00018879,2]
[378728750,1754993448001,-460.0,0.00018879,2]
[378728751,1754993448011,-460.0,0.00018879,2]
[378728752,1754993448020,-460.0,0.00018879,2]
[378728753,1754993448037,-460.0,0.00018879,2]
[378728754,1754993448047,-460.0,0.00018879,2]
[378728755,1754993448056,-460.0,0.00018879,2]
[378728756,1754993448066,-460.0,0.00018879,2]
[378728757,1754993448075,-460.0,0.00018879,2]
[378728758,1754993448085,-464.32070822,0.00018879,2]
[378728759,1754993448095,-885.56,0.00018879,2]
[378728760,1754993448104,-463.66198058,0.00018879,2]
[378728761,1754993448115,-460.0,0.00018879,2]
[378728762,1754993448268,-460.0,0.00018879,2]
[378728763,1754993448279,-460.0,0.00018879,2]
[378728764,1754993448289,-460.0,0.00018879,2]
[378728765,1754993448299,-460.0,0.00018879,2]
[378728766,1754993448309,-751.23,0.00018879,2]
[378728767,1754993448319,-460.0,0.00018879,2]
[378728768,1754993448330,-460.0,0.00018879,2]
[378728769,1754993448340,-460.0,0.00018879,2]
[378728770,1754993448350,-460.0,0.00018879,2]
[378728771,1754993448360,-460.0,0.00018879,2]
[378728772,1754993448369,-460.0,0.00018879,2]
[378728773,1754993448379,-456.6775147,0.00018879,2]
[378728774,1754993448389,-151.0,0.000189,2]
[378728775,1754993448399,-151.0,0.000189,2]
[378728776,1754993448409,-434.26059857,0.000189,2]
[378728777,1754993448418,-2703.00304481,0.000189,2]
[378728778,1754993448428,-1000.0,0.00018921,2]
[378728779,1754993448440,-1000.0,0.00018921,2]
[378728780,1754993448450,-1009.88605288,0.00018921,2]
[378728781,1754993448461,-1000.0,0.00018921,2]
[378728782,1754993448471,-1000.0,0.00018921,2]
[378728783,1754993448481,-1000.0,0.00018921,2]
[378728784,1754993448491,-1000.93742005,0.00018921,2]
[378728785,1754993448503,-500.251964,0.00018921,2]
[378728786,1754993448513,-1000.66368983,0.00018921,2]
[378728787,1754993448523,-500.0,0.00018921,2]
[378728788,1754993448534,-1000.0,0.00018921,2]
[378728789,1754993448544,-1000.0,0.00018921,2]
[378728790,1754993448553,-501.01799849,0.00018921,2]
[378728791,1754993448563,-502.02202427,0.00018921,2]
[378728792,1754993448573,-500.43418225,0.00018921,2]
[378728793,1754993448583,-501.22025665,0.00018921,2]
[378728794,1754993448592,-1000.0,0.00018921,2]
[378728795,1754993448602,-500.23855586,0.00018921,2]
[378728796,1754993448612,-500.5033971,0.00018921,2]
[378728797,1754993448621,-1000.0,0.00018921,2]
[378728798,1754993448631,-1000.0,0.00018921,2]
[378728799,1754993448640,-1000.0,0.00018921,2]
[378728800,1754993448650,-1000.0,0.00018921,2]
[378728801,1754993448660,-151.0,0.00018972,2]
[378728802,1754993448670,-151.0,0.00018972,2]
[378728803,1754993448680,-151.0,0.00018972,2]
[378728804,1754993448691,-151.0,0.00018972,2]
[378728805,1754993448700,-286.15995431,0.00018972,2]
[378728806,1754993448710,-500.0,0.00018987,2]
[378728807,1754993448719,-500.0,0.00018987,2]
[378728808,1754993448729,-500.0,0.00018987,2]
[378728809,1754993448739,-500.0,0.00018987,2]
[378728810,1754993448749,-500.0,0.00018987,2]
[378728811,1754993448758,-151.0,0.00019,2]
[378728812,1754993448768,-151.0,0.00019,2]
[378728813,1754993448778,-501.2477495,0.00019031,2]
[378728814,1754993448787,-168.0,0.00019033,2]
[378728815,1754993448797,-500.0,0.00019041,2]
[378728816,1754993448807,-500.0,0.00019041,2]
[378728817,1754993448817,-500.80613502,0.00019041,2]
[378728818,1754993448827,-460.0,0.00019042,2]
[378728819,1754993448836,-535.68,0.00019042,2]
[378728820,1754993448847,-867.55,0.00019042,2]
[378728821,1754993448857,-460.0,0.00019042,2]
[378728822,1754993448867,-1793.58,0.00019042,2]
[378728823,1754993448877,-4125.85,0.00019042,2]
[378728824,1754993448886,-211.33442873,0.00019042,2]
[378728825,1754993448895,-534.9,0.00019042,2]
[378728826,1754993448904,-702.15,0.00019042,2]
[378728827,1754993448914,-2088.66,0.00019042,2]
[378728828,1754993448925,-2935.88,0.00019042,2]
[378728829,1754993448935,-172.93488013,0.00019044,2]
[378728830,1754993448945,-500.0,0.00019047,2]
[378728831,1754993448956,-460.0,0.0001905,2]
[378728832,1754993448966,-637.48,0.00019051,2]
[378728833,1754993448976,-3358.23,0.00019051,2]
[378728834,1754993448986,-814.25,0.00019051,2]
[378728835,1754993448996,-562.75,0.00019051,2]
[378728836,1754993449005,-1806.29,0.00019051,2]
[378728837,1754993449015,-1411.06,0.00019051,2]
[378728838,1754993449026,-460.0,0.00019051,2]
[378728839,1754993449036,-2095.73,0.00019051,2]
[378728840,1754993449046,-460.0,0.00019051,2]
[378728841,1754993449056,-1235.62,0.00019051,2]
[378728842,1754993449066,-460.0,0.00019051,2]
[378728843,1754993449075,-460.0,0.00019051,2]
[378728844,1754993449085,-1123.22,0.00019051,2]
[378728845,1754993449095,-1069.94,0.00019051,2]
[378728846,1754993449110,-1398.29,0.00019051,2]
[378728847,1754993449121,-460.0,0.00019051,2]
[378728848,1754993449141,-807.64,0.00019051,2]
[378728849,1754993449150,-460.0,0.00019052,2]
[378728850,1754993449160,-492.35,0.00019052,2]
[378728851,1754993449171,-460.0,0.00019052,2]
[378728852,1754993449181,-460.0,0.00019052,2]
[378728853,1754993449192,-528.75,0.00019052,2]
[378728854,1754993449203,-808.18,0.00019052,2]
[378728855,1754993449213,-460.0,0.00019052,2]
[378728856,1754993449223,-596.24,0.00019052,2]
[378728857,1754993449232,-460.0,0.00019052,2]
[378728858,1754993449242,-460.0,0.00019052,2]
[378728859,1754993449252,-460.0,0.00019052,2]
[378728860,1754993449261,-460.0,0.00019052,2]
[378728861,1754993449270,-460.0,0.00019052,2]
[378728862,1754993449280,-460.0,0.00019052,2]
[378728863,1754993449289,-542.92,0.00019052,2]
[378728864,1754993449299,-460.0,0.00019052,2]
[378728865,1754993449308,-460.0,0.00019052,2]
[378728866,1754993449317,-463.86,0.00019052,2]
[378728867,1754993449327,-463.16,0.00019052,2]
[378728868,1754993449336,-460.0,0.00019052,2]
[378728869,1754993449345,-460.0,0.00019052,2]
[378728870,1754993449355,-813.71,0.00019052,2]
[378728871,1754993449364,-628.94,0.00019052,2]
[378728872,1754993449373,-460.0,0.00019052,2]
[378728873,1754993449383,-460.0,0.00019052,2]
[378728874,1754993449394,-460.0,0.00019052,2]
[378728875,1754993449403,-460.0,0.00019052,2]
[378728876,1754993449413,-460.0,0.00019052,2]
[378728877,1754993449422,-460.0,0.00019052,2]
[378728878,1754993449432,-651.29,0.00019052,2]
[378728879,1754993449444,-832.44,0.00019052,2]
[378728880,1754993449453,-493.22,0.00019052,2]
[378728881,1754993449463,-462.73655047,0.00019052,2]
[378728882,1754993449473,-460.0,0.00019052,2]
[378728883,1754993449482,-1204.9,0.00019052,2]
[378728884,1754993449492,-720.75,0.00019052,2]
[378728885,1754993449501,-460.0,0.00019052,2]
[378728886,1754993449510,-460.0,0.00019052,2]
[378728887,1754993449520,-460.0,0.00019052,2]
[378728888,1754993449530,-1215.91,0.00019052,2]
[378728889,1754993449539,-460.0,0.00019052,2]
[378728890,1754993449548,-738.4,0.00019052,2]
[378728891,1754993449557,-661.18,0.00019052,2]
[378728892,1754993449566,-460.0,0.00019052,2]
[378728893,1754993449575,-460.0,0.00019052,2]
[378728894,1754993449585,-460.0,0.00019052,2]
[378728895,1754993449594,-460.0,0.00019052,2]
[378728896,1754993449604,-637.48,0.00019052,2]
[378728897,1754993449613,-460.0,0.00019052,2]
[378728898,1754993449622,-841.31,0.00019052,2]
[378728899,1754993449631,-530.86,0.00019052,2]
[378728900,1754993449641,-552.46,0.00019052,2]
[378728901,1754993449650,-560.65,0.00019052,2]
[378728902,1754993449659,-1222.27,0.00019052,2]
[378728903,1754993449668,-460.0,0.00019052,2]
[378728904,1754993449677,-635.15,0.00019052,2]
[378728905,1754993449688,-460.0,0.00019052,2]
[378728906,1754993449697,-460.0,0.00019052,2]
[378728907,1754993449707,-460.0,0.00019052,2]
[378728908,1754993449716,-11752.43,0.00019052,2]
[378728909,1754993449725,-161.98780148,0.00019052,2]
[378728910,1754993449734,-1471.17,0.00019052,2]
[378728911,1754993449743,-460.0,0.00019052,2]
[378728912,1754993449753,-3385.92,0.00019052,2]
[378728913,1754993449762,-526.52004035,0.00019052,2]
[378728914,1754993449776,-460.0,0.00019052,2]
[378728915,1754993449790,-779.18,0.00019052,2]
[378728916,1754993449804,-460.0,0.00019052,2]
[378728917,1754993449818,-460.0,0.00019052,2]
[378728918,1754993449829,-664.15,0.00019052,2]
[378728919,1754993449842,-460.0,0.00019052,2]
[378728920,1754993449856,-4114.15,0.00019052,2]
[378728921,1754993449870,-506.59,0.00019052,2]
[378728922,1754993449884,-460.0,0.00019052,2]
[378728923,1754993449896,-594.05,0.00019052,2]
[378728924,1754993449908,-2981.76,0.00019052,2]
[378728925,1754993449922,-460.0,0.00019052,2]
[378728926,1754993449936,-460.0,0.00019052,2]
[378728927,1754993449949,-653.57,0.00019052,2]
[378728928,1754993449962,-1339.5,0.00019052,2]
[378728929,1754993449974,-460.0,0.00019052,2]
[378728930,1754993449985,-460.0,0.00019052,2]
[378728931,1754993450000,-460.0,0.00019052,2]
[378728932,1754993450013,-1857.89,0.00019052,2]
[378728933,1754993450025,-460.0,0.00019052,2]
[378728934,1754993450036,-1593.29,0.00019052,2]
[378728935,1754993450047,-460.0,0.00019052,2]
[378728936,1754993450060,-1132.56,0.00019052,2]
[378728937,1754993450073,-938.58,0.00019052,2]
[378728938,1754993450085,-500.0,0.00019052,2]
[378728939,1754993450098,-168.0,0.00019065,2]
[378728940,1754993450111,-1626.0,0.0001907,2]
[378728941,1754993450125,-151.0,0.000191,2]
[378728942,1754993450138,-341.1,0.00019115,2]
[378728943,1754993450152,-500.0,0.0001915,2]
[378728944,1754993450166,-460.0,0.00019151,2]
[378728945,1754993450176,-460.0,0.00019151,2]
[378728946,1754993450187,-2476.3,0.00019151,2]
[378728947,1754993450197,-1029.39,0.00019151,2]
[378728948,1754993450210,-2758.56,0.00019151,2]
[378728949,1754993450224,-460.0,0.00019151,2]
[378728950,1754993450236,-630.36,0.00019152,2]
[378728951,1754993450248,-677.65,0.00019152,2]
[378728952,1754993450259,-1448.01,0.00019152,2]
[378728953,1754993450271,-460.0,0.00019152,2]
[378728954,1754993450284,-460.0,0.00019152,2]
[378728955,1754993450296,-460.0,0.00019152,2]
[378728956,1754993450307,-460.0,0.00019152,2]
[378728957,1754993450318,-870.6,0.00019152,2]
[378728958,1754993450330,-460.0,0.00019152,2]
[378728959,1754993450341,-548.95,0.00019152,2]
[378728960,1754993450353,-460.0,0.00019152,2]
[378728961,1754993450364,-725.32,0.00019152,2]
[378728962,1754993450375,-460.0,0.00019152,2]
[378728963,1754993450386,-460.0,0.00019152,2]
[378728964,1754993450397,-653.95,0.00019152,2]
[378728965,1754993450409,-460.0,0.00019152,2]
[378728966,1754993450420,-460.0,0.00019152,2]
[378728967,1754993450432,-491.99,0.00019152,2]
[378728968,1754993450445,-460.0,0.00019152,2]
[378728969,1754993450456,-1331.42,0.00019152,2]
[378728970,1754993450468,-599.19,0.00019152,2]
[378728971,1754993450479,-464.51217796,0.00019152,2]
[378728972,1754993450491,-460.0,0.00019152,2]
[378728973,1754993450503,-460.0,0.00019152,2]
[378728974,1754993450514,-460.0,0.00019152,2]
[378728975,1754993450525,-1920.48,0.00019152,2]
[378728976,1754993450537,-460.0,0.00019152,2]
[378728977,1754993450549,-460.0,0.00019152,2]
[378728978,1754993450561,-513.28599369,0.00019152,2]
[378728979,1754993450572,-460.0,0.00019152,2]
[378728980,1754993450584,-460.0,0.00019152,2]
[378728981,1754993450596,-460.0,0.00019152,2]
[378728982,1754993450608,-460.0,0.00019152,2]
[378728983,1754993450620,-460.0,0.00019152,2]
[378728984,1754993450632,-460.0,0.00019152,2]
[378728985,1754993450644,-460.0,0.00019152,2]
[378728986,1754993450655,-460.0,0.00019152,2]
[378728987,1754993450667,-460.0,0.00019152,2]
[378728988,1754993450680,-460.0,0.00019152,2]
[378728989,1754993450692,-460.0,0.00019153,2]
[378728990,1754993450703,-460.0,0.00019153,2]
[378728991,1754993450713,-460.0,0.00019153,2]
[378728992,1754993450724,-460.0,0.00019153,2]
[378728993,1754993450736,-460.0,0.00019153,2]
[378728994,1754993450747,-463.67669307,0.00019153,2]
[378728995,1754993450758,-460.0,0.00019153,2]
[378728996,1754993450769,-460.0,0.00019153,2]
[378728997,1754993450781,-460.0,0.00019153,2]
[378728998,1754993450792,-460.0,0.00019153,2]
[378728999,1754993450803,-460.0,0.00019153,2]
[378729000,1754993450816,-382.68462221,0.00019153,2]
[378729001,1754993450827,-460.0,0.00019153,2]
[378729002,1754993450838,-460.0,0.00019153,2]
[378729003,1754993450849,-460.0,0.00019153,2]
[378729004,1754993450860,-460.0,0.00019153,2]
[378729005,1754993450871,-460.0,0.00019153,2]
[378729006,1754993450882,-460.0,0.00019153,2]
[378729007,1754993450893,-885.56,0.00019153,2]
[378729008,1754993450904,-460.0,0.00019153,2]
[378729009,1754993450915,-460.0,0.00019153,2]
[378729010,1754993450926,-170.49121146,0.00019153,2]
[378729011,1754993450936,-460.0,0.00019153,2]
[378729012,1754993450950,-460.0,0.00019153,2]
[378729013,1754993450961,-751.23,0.00019153,2]
[378729014,1754993450973,-460.0,0.00019153,2]
[378729015,1754993450984,-549.77400161,0.00019153,2]
[378729016,1754993450997,-460.0,0.00019153,2]
[378729017,1754993451008,-460.0,0.00019153,2]
[378729018,1754993451020,-460.0,0.00019153,2]
[378729019,1754993451032,-460.0,0.00019153,2]
[378729020,1754993451043,-151.0,0.00019178,2]
[378729021,1754993451055,-666.0,0.00019178,2]
[378729022,1754993451066,-500.0,0.00019191,2]
[378729023,1754993451077,-168.0,0.00019204,2]
[378729024,1754993451088,-168.0,0.00019217,2]
[378729025,1754993451099,-1000.0,0.00019221,2]
[378729026,1754993451111,-1061.06729624,0.00019221,2]
[378729027,1754993451122,-1057.59296263,0.00019221,2]
[378729028,1754993451133,-1005.16945793,0.00019221,2]
[378729029,1754993451144,-1001.26138303,0.00019221,2]
[378729030,1754993451155,-500.50977512,0.00019221,2]
[378729031,1754993451166,-704.73304251,0.00019221,2]
[378729032,1754993451177,-509.4840268,0.00019221,2]
[378729033,1754993451189,-211.57959969,0.00019221,2]
[378729034,1754993451200,-1000.0,0.00019221,2]
[378729035,1754993451211,-1000.0,0.00019221,2]
[378729036,1754993451222,-1000.0,0.00019221,2]
[378729037,1754993451234,-1001.19906462,0.00019221,2]
[378729038,1754993451244,-1000.0,0.00019221,2]
[378729039,1754993451255,-1000.0,0.00019221,2]
[378729040,1754993451266,-258.22936594,0.00019233,2]
[378729041,1754993451278,-150.0,0.00019239,2]
[378729042,1754993451289,-150.028,0.00019239,2]
[378729043,1754993451300,-150.101,0.00019239,2]
[378729044,1754993451311,-168.0,0.00019241,2]
[378729045,1754993451323,-460.0,0.00019316,2]
[378729046,1754993451334,-535.68,0.00019316,2]
[378729047,1754993451345,-867.55,0.00019316,2]
[378729048,1754993451356,-460.0,0.00019316,2]
[378729049,1754993451367,-1793.58,0.00019316,2]
[378729050,1754993451379,-4125.85,0.00019316,2]
[378729051,1754993451399,-534.9,0.00019316,2]
[378729052,1754993451422,-702.15,0.00019316,2]
[378729053,1754993451437,-2088.66,0.00019316,2]
[378729054,1754993451448,-2935.88,0.00019316,2]
[378729055,1754993451459,-460.0,0.00019324,2]
[378729056,1754993451470,-637.48,0.00019325,2]
[378729057,1754993451482,-3358.23,0.00019325,2]
[378729058,1754993451493,-814.25,0.00019325,2]
[378729059,1754993451508,-562.75,0.00019325,2]
[378729060,1754993451520,-1806.29,0.00019325,2]
[378729061,1754993451531,-1411.06,0.00019325,2]
[378729062,1754993451543,-2095.73,0.00019325,2]
[378729063,1754993451555,-460.0,0.00019325,2]
[378729064,1754993451564,-1235.62,0.00019325,2]
[378729065,1754993451573,-460.0,0.00019325,2]
[378729066,1754993451583,-460.0,0.00019325,2]
[378729067,1754993451592,-1123.22,0.00019325,2]
[378729068,1754993451602,-1069.94,0.00019325,2]
[378729069,1754993451839,-1398.29,0.00019325,2]
[378729070,1754993451856,-460.0,0.00019325,2]
[378729071,1754993451866,-807.64,0.00019325,2]
[378729072,1754993451876,-460.0,0.00019326,2]
[378729073,1754993451885,-492.35,0.00019326,2]
[378729074,1754993451895,-460.0,0.00019326,2]
[378729075,1754993451904,-460.0,0.00019326,2]
[378729076,1754993451913,-528.75,0.00019326,2]
[378729077,1754993451922,-808.18,0.00019326,2]
[378729078,1754993451931,-460.0,0.00019326,2]
[378729079,1754993451941,-596.24,0.00019326,2]
[378729080,1754993451954,-460.0,0.00019326,2]
[378729081,1754993451963,-460.0,0.00019326,2]
[378729082,1754993451972,-574.83427458,0.00019326,2]
[378729083,1754993451981,-460.0,0.00019326,2]
[378729084,1754993451990,-460.0,0.00019326,2]
[378729085,1754993451999,-542.92,0.00019326,2]
[378729086,1754993452011,-460.0,0.00019326,2]
[378729087,1754993452020,-460.0,0.00019326,2]
[378729088,1754993452029,-463.86,0.00019326,2]
[378729089,1754993452038,-463.16,0.00019326,2]
[378729090,1754993452047,-460.0,0.00019326,2]
[378729091,1754993452056,-460.0,0.00019326,2]
[378729092,1754993452066,-813.71,0.00019326,2]
[378729093,1754993452075,-628.94,0.00019326,2]
[378729094,1754993452084,-460.0,0.00019326,2]
[378729095,1754993452094,-517.22009665,0.00019326,2]
[378729096,1754993452103,-460.0,0.00019326,2]
[378729097,1754993452113,-460.0,0.00019326,2]
[378729098,1754993452122,-460.0,0.00019326,2]
[378729099,1754993452132,-460.0,0.00019326,2]
[378729100,1754993452142,-651.29,0.00019326,2]
[378729101,1754993452151,-832.44,0.00019326,2]
[378729102,1754993452160,-493.22,0.00019326,2]
[378729103,1754993452170,-460.0,0.00019326,2]
[378729104,1754993452180,-1204.9,0.00019326,2]
[378729105,1754993452190,-720.75,0.00019326,2]
[378729106,1754993452199,-460.0,0.00019326,2]
[378729107,1754993452208,-460.0,0.00019326,2]
[378729108,1754993452217,-460.0,0.00019326,2]
[378729109,1754993452227,-1215.91,0.00019326,2]
[378729110,1754993452236,-460.0,0.00019326,2]
[378729111,1754993452245,-738.4,0.00019326,2]
[378729112,1754993452255,-661.18,0.00019326,2]
[378729113,1754993452264,-460.0,0.00019326,2]
[378729114,1754993452274,-460.0,0.00019326,2]
[378729115,1754993452283,-460.0,0.00019326,2]
[378729116,1754993452293,-637.48,0.00019326,2]
[378729117,1754993452302,-460.0,0.00019326,2]
[378729118,1754993452311,-841.31,0.00019326,2]
[378729119,1754993452320,-530.86,0.00019326,2]
[378729120,1754993452330,-552.46,0.00019326,2]
[378729121,1754993452339,-560.65,0.00019326,2]
[378729122,1754993452348,-1222.27,0.00019326,2]
[378729123,1754993452358,-460.0,0.00019326,2]
[378729124,1754993452367,-635.15,0.00019326,2]
[378729125,1754993452376,-460.0,0.00019326,2]
[378729126,1754993452386,-460.0,0.00019326,2]
[378729127,1754993452396,-460.0,0.00019326,2]
[378729128,1754993452405,-11752.43,0.00019326,2]
[378729129,1754993452415,-1471.17,0.00019326,2]
[378729130,1754993452424,-460.0,0.00019326,2]
[378729131,1754993452433,-3385.92,0.00019326,2]
[378729132,1754993452442,-460.0,0.00019326,2]
[378729133,1754993452452,-779.18,0.00019326,2]
[378729134,1754993452462,-460.0,0.00019326,2]
[378729135,1754993452471,-460.0,0.00019326,2]
[378729136,1754993452481,-664.15,0.00019326,2]
[378729137,1754993452490,-4114.15,0.00019326,2]
[378729138,1754993452500,-506.59,0.00019326,2]
[378729139,1754993452510,-460.0,0.00019326,2]
[378729140,1754993452519,-594.05,0.00019326,2]
[378729141,1754993452528,-2981.76,0.00019326,2]
[378729142,1754993452537,-460.0,0.00019326,2]
[378729143,1754993452546,-460.0,0.00019326,2]
[378729144,1754993452556,-653.57,0.00019326,2]
[378729145,1754993452567,-1339.5,0.00019326,2]
[378729146,1754993452576,-460.0,0.00019326,2]
[378729147,1754993452585,-460.0,0.00019326,2]
[378729148,1754993452595,-460.0,0.00019326,2]
[378729149,1754993452604,-1857.89,0.00019326,2]
[378729150,1754993452614,-460.0,0.00019326,2]
[378729151,1754993452623,-1593.29,0.00019326,2]
[378729152,1754993452634,-460.0,0.00019326,2]
[378729153,1754993452644,-1132.56,0.00019326,2]
[378729154,1754993452653,-938.58,0.00019326,2]
[378729155,1754993452662,-506.25103804,0.00019326,2]
[378729156,1754993452672,-78590.78570055,0.00019329,2]
[378729157,1754993452681,-636.0,0.00019348,2]
[378729158,1754993452691,-2151.0,0.00019348,2]
[378729159,1754993452701,-973.263,0.00019348,2]
[378729160,1754993452711,-1626.0,0.00019368,2]
[378729161,1754993452721,-500.94887245,0.00019373,2]
[378729162,1754993452733,-500.10139685,0.00019373,2]
[378729163,1754993452742,-500.0,0.00019373,2]
[378729164,1754993452752,-500.0,0.00019373,2]
[378729165,1754993452761,-500.0,0.00019373,2]
[378729166,1754993452771,-433.30891369,0.00019373,2]
[378729167,1754993452780,-500.745957,0.00019373,2]
[378729168,1754993452789,-500.0,0.00019373,2]
[378729169,1754993452798,-500.0,0.00019373,2]
[378729170,1754993452809,-571.59741253,0.00019373,2]
[378729171,1754993452818,-500.0,0.00019373,2]
[378729172,1754993452827,-500.39865225,0.00019373,2]
[378729173,1754993452836,-500.0,0.00019373,2]
[378729174,1754993452845,-500.0,0.00019373,2]
[378729175,1754993452854,-500.0,0.00019373,2]
[378729176,1754993452863,-500.0,0.00019373,2]
[378729177,1754993452872,-500.0,0.00019373,2]
[378729178,1754993452881,-500.0,0.00019373,2]
[378729179,1754993452890,-341.1,0.00019377,2]
[378729180,1754993452899,-150.0,0.00019393,2]
[378729181,1754993452908,-245.048,0.00019393,2]
[378729182,1754993452917,-168.0,0.00019406,2]
[378729183,1754993452925,-196.55167787,0.00019425,2]
[378729184,1754993452934,-460.0,0.00019425,2]
[378729185,1754993452944,-2476.3,0.00019425,2]
[378729186,1754993452956,-1029.39,0.00019425,2]
[378729187,1754993452965,-2758.56,0.00019425,2]
[378729188,1754993452974,-460.0,0.00019425,2]
[378729189,1754993452983,-630.36,0.00019426,2]
[378729190,1754993452993,-677.65,0.00019426,2]
[378729191,1754993453003,-1448.01,0.00019426,2]
[378729192,1754993453012,-460.0,0.00019426,2]
[378729193,1754993453021,-460.0,0.00019426,2]
[378729194,1754993453031,-460.0,0.00019426,2]
[378729195,1754993453041,-460.0,0.00019426,2]
[378729196,1754993453051,-870.6,0.00019426,2]
[378729197,1754993453060,-460.0,0.00019426,2]
[378729198,1754993453069,-548.95,0.00019426,2]
[378729199,1754993453078,-460.0,0.00019426,2]
[378729200,1754993453088,-725.32,0.00019426,2]
[378729201,1754993453097,-460.0,0.00019426,2]
[378729202,1754993453106,-653.95,0.00019426,2]
[378729203,1754993453116,-460.0,0.00019426,2]
[378729204,1754993453125,-467.25878383,0.00019426,2]
[378729205,1754993453135,-491.99,0.00019426,2]
[378729206,1754993453144,-460.0,0.00019426,2]
[378729207,1754993453154,-1331.42,0.00019426,2]
[378729208,1754993453163,-599.19,0.00019426,2]
[378729209,1754993453172,-460.0,0.00019426,2]
[378729210,1754993453181,-460.0,0.00019426,2]
[378729211,1754993453191,-460.0,0.00019426,2]
[378729212,1754993453200,-1920.48,0.00019426,2]
[378729213,1754993453209,-237.74197553,0.00019426,2]
[378729214,1754993453218,-460.0,0.00019426,2]
[378729215,1754993453227,-460.0,0.00019426,2]
[378729216,1754993453237,-460.0,0.00019426,2]
[378729217,1754993453246,-460.0,0.00019426,2]
[378729218,1754993453255,-460.0,0.00019426,2]
[378729219,1754993453264,-600.97,0.00019426,2]
[378729220,1754993453273,-460.0,0.00019426,2]
[378729221,1754993453282,-460.0,0.00019426,2]
[378729222,1754993453292,-460.0,0.00019426,2]
[378729223,1754993453301,-460.0,0.00019426,2]
[378729224,1754993453310,-460.0,0.00019427,2]
[378729225,1754993453319,-460.0,0.00019427,2]
[378729226,1754993453328,-460.0,0.00019427,2]
[378729227,1754993453338,-460.0,0.00019427,2]
[378729228,1754993453347,-460.0,0.00019427,2]
[378729229,1754993453357,-460.0,0.00019427,2]
[378729230,1754993453367,-460.0,0.00019427,2]
[378729231,1754993453377,-460.0,0.00019427,2]
[378729232,1754993453386,-460.0,0.00019427,2]
[378729233,1754993453395,-477.26770397,0.00019427,2]
[378729234,1754993453404,-460.0,0.00019427,2]